Cogmind - Beta 14 @@@ ROGUE MODE // 2024.08.19 @ 17:54:46 Player: Dumalacath Result: Escaped! Performance ------------- Evolutions (9) 4500 Regions Visited (25) 5000 Robots Destroyed (289) 1445 Value Destroyed (13315) 13315 Prototype IDs (63) 1260 Alien Tech Used (1) 200 Bonus (8839) 8839 TOTAL SCORE: 34559 Bonus ------- High Alert Combat Kills 1272 Follower Combat Kills 1655 Aligned with FarCom 300 Met Data Miner 300 Met Zhirov 300 Built Enhanced Grunts 300 A7 Reached Mainframe 300 Met R17 at Cetus 500 Met R17 at Research 2000 Win 3000 Friendly Fire -1088 Cogmind --------- Core Integrity 1525/1600 Matter 250/300 Energy 408/440 System Corruption 15% Temperature Cool (-181) Movement Treading (146) Location To Epsilon Eridani Parts ------- > --- POWER (2) -------- Quantum Reactor Light Quantum Reactor > --- PROPULSION (9) --- Biometal Heavy Treads Biometal Heavy Treads Biometal Heavy Treads Advanced Heavy Siege Treads Experimental Biometal Medium Treads > --- UTILITY (10) ----- Advanced Cryofiber Web Advanced Heat Sink Huge Storage Unit Experimental Transmission Jammer Layered Medium Armor Plating Layered Heavy Armor Plating Makeshift Hacking Suite Makeshift Hacking Suite Improved Hacking Suite > --- WEAPON (4) ------- Enhanced Nova Cannon Enhanced Nova Cannon Molecular Deconstructor > --- INVENTORY (25) --- Light Particle Reactor Light Particle Reactor Micro Antimatter Reactor Micro Antimatter Reactor Light Quantum Reactor Advanced Heavy Siege Treads Experimental Biometal Medium Treads Advanced Heat Sink Hardened Heavy Armor Plating Improved Heavy Armor Plating Layered Heavy Armor Plating Centrium Heavy Armor Plating Heavy Insulated Plating Advanced Force Field Scatter Rocket Array Micro-nuke Launcher Peak State ------------ > --- POWER ------------ Micro Antimatter Reactor Light Quantum Reactor > --- PROPULSION ------- Biometal Heavy Treads Biometal Heavy Treads Biometal Heavy Treads Advanced Heavy Siege Treads Experimental Biometal Medium Treads > --- UTILITY ---------- Advanced Cryofiber Web Advanced Heat Sink Huge Storage Unit Experimental Transmission Jammer Layered Medium Armor Plating Centrium Heavy Armor Plating Makeshift Hacking Suite Makeshift Hacking Suite Improved Hacking Suite > --- WEAPON ----------- Enhanced Quantum Rifle Nova Cannon Enhanced Nova Cannon Hardcell Cannon > --- INVENTORY -------- Light Particle Reactor Light Particle Reactor Micro Antimatter Reactor Advanced Heavy Siege Treads Experimental Biometal Medium Treads Advanced Heat Sink Hardened Heavy Armor Plating Improved Heavy Armor Plating Centrium Heavy Armor Plating Heavy Insulated Plating Advanced Force Field AWS/Thermal Disruptor Cannon Nova Cannon Scatter Rocket Array Micro-nuke Launcher Molecular Deconstructor [Rating: 208] Favorites ----------- Power Quantum Reactor Engine Light Deuterium Engine Power Core Fission Core Reactor Quantum Reactor Propulsion Armored Medium Treads Treads Armored Medium Treads Leg Armored Leg Wheel Armored Huge Wheel Hover Unit Gravmag System Utility Advanced Heat Sink Device Advanced Heat Sink Storage Huge Storage Unit Processor 0b10 Decoder Chip [Skirmisher] Hackware Makeshift Hacking Suite Protection Centrium Medium Armor Plating Weapon Heavy Plasma Cannon Energy Gun Advanced Variable Charge Gun Energy Cannon Heavy Plasma Cannon Ballistic Gun Flak Gun Ballistic Cannon Antimatter Cannon Launcher Heavy Rocket Launcher Special Weapon Mining Laser Slashing Weapon Katana Build | -11 -10 -10 -10 -9 -8 -7 -7 -7 -7 -6 -6 -6 -6 -5 -5 -5 -5 -4 -4 -4 -4 -3 -3 -2 -1 ------- Run | Yrd Mat Min Exi Min Mat Fac Low Low Dat Pro Fac Low Low Fac Ext Cet Arc Fac Upp Upp Zhi Pro Res Res Acc Slots Evolved 18 | . . . . . 4 2 . . . . 2 . . 2 . . . 2 . . . . 2 2 2 Power 1 | . . . . . . . . . . . . . . . . . . 1 . . . . . . . Propulsion 7 | . . . . . 1 1 . . . . . . . 1 . . . 1 . . . . . 1 2 Utility 8 | . . . . . 2 1 . . . . 2 . . . . . . . . . . . 2 1 . Weapon 2 | . . . . . 1 . . . . . . . . 1 . . . . . . . . . . . Parts Attached 296 | 7 9 13 3 2 31 22 6 10 . 6 15 1 . 35 16 12 5 14 4 11 12 11 13 19 19 Power 31 | 1 2 1 1 . 4 1 . . . 1 . . . 6 1 1 . 1 1 1 1 . 3 2 3 Engine 4 | 1 1 . . . 2 . . . . . . . . . . . . . . . . . . . . Core 8 | . 1 1 1 . 2 1 . . . 1 . . . 1 . . . . . . . . . . . Reactor 19 | . . . . . . . . . . . . . . 5 1 1 . 1 1 1 1 . 3 2 3 Propulsion 47 | 2 3 1 . . 8 2 1 2 . . 3 . . 9 . 3 . 2 . 1 . 3 2 4 1 Treads 34 | . 2 1 . . 4 2 . 1 . . 2 . . 7 . 3 . 2 . 1 . 3 1 4 1 Leg 4 | . . . . . 1 . . . . . 1 . . 2 . . . . . . . . . . . Wheel 8 | 2 1 . . . 3 . 1 . . . . . . . . . . . . . . . 1 . . Hover 1 | . . . . . . . . 1 . . . . . . . . . . . . . . . . . Flight . | . . . . . . . . . . . . . . . . . . . . . . . . . . Utility 101 | 2 2 2 2 . 5 7 1 4 . 2 7 . . 14 6 5 5 6 2 4 6 3 4 10 2 Device 60 | 1 1 1 1 . 1 6 1 3 . . 3 . . 12 1 2 5 5 2 2 4 2 1 6 . Storage 5 | 1 1 1 1 . . . . . . . 1 . . . . . . . . . . . . . . Processor 4 | . . . . . 1 . . . . . 1 . . 1 . . . . . . . . . 1 . Hackware 5 | . . . . . . . . . . . 1 . . . . . . . . . . . 2 2 . Protection 27 | . . . . . 3 1 . 1 . 2 1 . . 1 5 3 . 1 . 2 2 1 1 1 2 Artifact . | . . . . . . . . . . . . . . . . . . . . . . . . . . Weapon 117 | 2 2 9 . 2 14 12 4 4 . 3 5 1 . 6 9 3 . 5 1 5 5 5 4 3 13 Energy Gun 14 | 1 1 . . . . . . 1 . . . . . 1 . 1 . . . 2 3 1 . 2 1 Energy Cannon 38 | . 1 4 . 1 6 3 1 2 . 1 2 1 . 2 . . . 1 1 . . . 2 1 9 Ballistic Gun 23 | 1 . . . . 5 5 2 . . . 2 . . 1 3 1 . . . 1 1 1 . . . Ballistic Cannon 8 | . . . . . . . . . . . . . . . 1 . . 1 . 1 1 1 2 . 1 Launcher 25 | . . 3 . 1 . 3 1 1 . 1 1 . . 2 5 1 . 3 . 1 . 1 . . 1 Special Weapon 8 | . . 2 . . 3 1 . . . . . . . . . . . . . . . 1 . . 1 Impact Weapon . | . . . . . . . . . . . . . . . . . . . . . . . . . . Slashing Weapon 1 | . . . . . . . . . . 1 . . . . . . . . . . . . . . . Piercing Weapon . | . . . . . . . . . . . . . . . . . . . . . . . . . . Special Melee Weapon . | . . . . . . . . . . . . . . . . . . . . . . . . . . Unidentified Prototypes 17 | . . . . . . . . . . . . . . 5 . 4 . . . . 3 1 1 3 . Corrupted Parts 2 | . . . . . . . . . . . . . . . . 2 . . . . . . . . . System Corruption 7 | . . . . . . . . . . . . . . . . 7 . . . . . . . . . Parts Lost 57 | . 1 4 . . 4 . 1 7 . 7 . 1 . 1 6 . . 1 2 7 . 5 8 1 1 Power 8 | . 1 1 . . 1 . . . . . . . . . 1 . . . 1 1 . 1 1 . . Propulsion 13 | . . 1 . . 1 . 1 2 . 2 . . . 1 . . . . . . . 2 3 . . Utility 20 | . . 1 . . . . . 3 . 3 . . . . 5 . . 1 1 2 . 1 1 1 1 Weapon 16 | . . 1 . . 2 . . 2 . 2 . 1 . . . . . . . 4 . 1 3 . . Highest Loss Streak 7 | . 1 4 . . 3 . 1 6 . 7 . 1 . 1 2 . . 1 1 5 . 2 5 1 1 To Critical Strikes 1 | . . . . . . . . . . . . . . . . . . . . . . . 1 . . Average Slot Usage (%) 89 | . 98 99 86 100 98 100 97 88 92 81 85 85 80 92 93 89 88 88 88 83 67 81 81 80 78 Core 2 | . 9 13 1 14 3 . 7 7 7 7 6 6 6 . . . . . . . . . . . . Reactor 3 | . . . . . . . . . . . . . . 4 4 5 5 10 10 9 10 7 7 8 8 Treads 16 | . 15 13 14 14 11 30 26 6 7 3 4 6 6 17 29 20 17 21 21 15 15 16 15 14 20 Leg 1 | . . . . . . . . . . . 5 6 6 8 . . . . . . . . . . . Wheel 3 | . 12 14 14 14 14 . 1 7 7 7 6 6 6 . . . . . . . . . 2 1 . Device 14 | . 14 13 1 14 9 15 15 22 23 15 13 13 13 10 10 11 16 19 14 16 22 26 20 16 12 Storage 6 | . 14 14 26 14 9 7 7 7 7 7 6 6 6 5 5 5 5 5 5 5 5 5 4 4 4 Processor 2 | . . . . . 8 7 7 . . . 5 6 6 5 5 5 . . . . . . . . . Hackware 2 | . . . . . . . . . . . 6 6 6 5 2 . . . . . . . 8 8 12 Protection 7 | . . . . . 9 7 7 6 7 10 7 6 6 5 8 15 17 10 15 13 8 5 4 7 8 Energy Gun 2 | . 1 . . . . . . 5 7 3 . . . . . 1 5 5 5 8 2 7 3 2 1 Energy Cannon 9 | . 11 21 28 15 11 7 7 11 15 10 10 12 6 10 11 11 11 9 10 2 . . 4 8 10 Ballistic Gun 5 | . 14 2 . . 12 13 10 2 . . 4 6 6 11 4 5 5 4 . 3 1 6 3 . . Ballistic Cannon 1 | . . . . . . . . . . . . . . . 4 2 . . . 3 1 4 3 5 1 Launcher 1 | . . 2 . 12 . 1 4 1 . 3 2 . . . 1 . . . 5 1 . . . . . Peak Build Rating 208 | 7 12 13 14 15 27 40 46 53 52 54 72 73 69 101 104 126 126 149 148 149 144 143 152 190 208 Average Rating 89 | 5 10 12 9 14 23 36 41 49 52 47 66 72 69 89 101 116 126 145 146 143 124 130 136 173 201 On Entrance 77 | . 7 12 8 14 15 27 40 46 52 52 41 72 69 69 101 100 126 126 145 146 144 143 124 138 186 Naked Turns . | . . . . . . . . . . . . . . . . . . . . . . . . . . Heaviest Build 194 | 11 50 53 52 52 66 76 78 77 76 79 128 128 121 144 159 156 160 180 176 174 156 150 173 183 194 Greatest Support 345 | 26 40 16 16 20 60 80 80 28 28 28 28 28 28 135 135 187 187 217 217 235 235 235 202 270 345 Greatest Overweight (x) 5 | . 3 3 3 3 5 . 2 2 2 2 4 4 4 5 1 1 . . . . . . 1 1 . Average Overweight (x) 1 | . 1 2 2 2 1 . . 2 2 2 3 4 4 2 1 . . . . . . . . . . Largest Inventory Capacity 25 | 8 20 20 20 20 20 20 20 20 20 20 25 25 25 25 25 25 25 25 25 25 25 25 25 25 25 Average Capacity 22 | 7 13 20 20 20 20 20 20 20 20 20 21 25 25 25 25 25 25 25 25 25 25 25 25 25 25 Most Carried 25 | 6 19 20 18 20 20 20 20 19 19 20 23 24 25 25 25 25 25 25 25 25 25 25 25 25 25 Average Carried 21 | 4 9 19 16 19 19 19 19 16 19 18 19 23 24 24 24 24 24 24 24 24 25 22 23 24 23 Final Capacity 25 | 8 20 20 20 20 20 20 20 20 20 20 25 25 25 25 25 25 25 25 25 25 25 25 25 25 25 Final Carried 25 | 6 19 15 17 20 20 20 18 19 19 17 23 24 25 25 24 25 25 24 25 25 25 21 25 23 22 Class Distribution -------------------- 21% | Scavenger-Tank 14% | Mutant 13% | Scavenger-Skirmisher 10% | Tank 9% | Skirmisher 6% | Hacker-Tank 5% | Derelict-Tank 4% | Scavenger-Gunner 3% | Derelict-Skirmisher 3% | Derelict-Gunner Dominant Class ---------------- Mutant | -10/Materials Mutant | -10/Mines Mutant | -10/Exiles Mutant | -9/Mines Scavenger-Skirmisher | -8/Materials Scavenger-Skirmisher | -7/Factory Scavenger-Gunner | -7/Lower Caves Tank | -7/Lower Caves Tank | -7/Data Miner Tank | -6/Proximity Caves Derelict-Skirmisher | -6/Factory Derelict-Tank | -6/Lower Caves Mutant | -6/Lower Caves Scavenger-Skirmisher | -5/Factory Skirmisher | -5/Extension Scavenger-Tank | -5/Cetus Scavenger-Tank | -5/Archives Scavenger-Tank | -4/Factory Scavenger-Tank | -4/Upper Caves Scavenger-Tank | -4/Upper Caves Scavenger-Mutant | -4/Zhirov Derelict-Gunner | -3/Proximity Caves Hacker-Skirmisher | -3/Research Hacker-Tank | -2/Research Hacker-Tank | -1/Access Resources | -11 -10 -10 -10 -9 -8 -7 -7 -7 -7 -6 -6 -6 -6 -5 -5 -5 -5 -4 -4 -4 -4 -3 -3 -2 -1 ----------- Run | Yrd Mat Min Exi Min Mat Fac Low Low Dat Pro Fac Low Low Fac Ext Cet Arc Fac Upp Upp Zhi Pro Res Res Acc Matter Collected 6946 | 276 210 80 156 80 373 431 386 175 . 207 89 111 . 503 1031 250 66 286 179 392 . 541 176 431 517 Remotely . | . . . . . . . . . . . . . . . . . . . . . . . . . . Salvage Created 12237 | 103 270 109 . 70 477 637 801 249 . 338 247 188 . 775 1863 233 305 1012 358 575 . 525 . 891 2211 Parts 587 | 7 20 8 . 14 31 41 34 11 . 17 12 1 . 23 57 3 23 40 19 26 . 24 . 56 120 Haulers Intercepted 2 | . . . . . 1 . . . . . . . . 1 . . . . . . . . . . . Recyclers Shooed 5 | . . . . . 1 . . . . . . . . . 3 . . 1 . . . . . . . Parts Field Recycled . | . . . . . . . . . . . . . . . . . . . . . . . . . . Retrieved Matter . | . . . . . . . . . . . . . . . . . . . . . . . . . . Parts Self-Destructed 125 | . . . . . . . 33 10 . 9 . . . . . . . . 19 30 . 24 . . . Prevented . | . . . . . . . . . . . . . . . . . . . . . . . . . . Kills | -11 -10 -10 -10 -9 -8 -7 -7 -7 -7 -6 -6 -6 -6 -5 -5 -5 -5 -4 -4 -4 -4 -3 -3 -2 -1 ------- Run | Yrd Mat Min Exi Min Mat Fac Low Low Dat Pro Fac Low Low Fac Ext Cet Arc Fac Upp Upp Zhi Pro Res Res Acc Combat Hostiles Destroyed 233 | . 5 8 . 8 5 16 20 6 . 14 4 1 . 13 27 6 1 19 5 18 . 11 . 12 34 Melee 2 | . . . . . . . . . . 2 . . . . . . . . . . . . . . . Guns 52 | . 2 . . . 4 4 8 2 . . . . . 7 1 3 1 4 1 3 . 8 . 1 3 Cannons 82 | . 3 2 . . 1 2 3 . . 3 1 1 . 6 11 . . 4 2 5 . 3 . 11 24 AOE 88 | . . 6 . 8 . 10 8 4 . 9 3 . . . 13 3 . 10 2 7 . . . . 5 Classes Destroyed 21 | 2 2 1 . 1 3 3 1 1 . . . 1 . 1 1 . . 3 . . . 1 . . . Worker 4 | . . . . . . . . . . . . . . 2 1 . . 1 . . . . . . . Builder 8 | . . . . . . 2 . . . . . . . . 2 . . 1 . . . . . 1 2 Tunneler 3 | 1 . . . . . . . . . . 1 . . . . . . . . . . . . . 1 Hauler 2 | . . . . . 1 . . . . . . . . 1 . . . . . . . . . . . Recycler 14 | 1 . . . . 1 2 . . . . 1 . . . 8 . . 1 . . . . . . . Mechanic 1 | . . . . . . . . . . . . . . . . . . 1 . . . . . . . Operator 5 | . . . . . 1 . . . . . . . . . . . 4 . . . . . . . . Watcher 13 | . 3 . . . 3 1 . . . . 1 . . 1 1 . . . . . . . . 1 2 Swarmer 63 | . . 6 . 8 . 4 3 . . 8 3 . . . 9 . . 3 3 10 . . . . 6 Cutter 1 | . . . . . . . . . . . . . . 1 . . . . . . . . . . . Saboteur 1 | . . . . . . . . . . . . . . . . . . 1 . . . . . . . Grunt 83 | . 5 2 . . 3 6 13 4 . 2 . . . 5 11 4 . 7 . 6 . 5 . 3 7 Brawler 2 | . . . . . . . 1 . . . . . . . 1 . . . . . . . . . . Duelist 8 | . . . . . . 2 2 . . 3 . . . . . . . . . . . . . 1 . Sentry 21 | . . . . . 2 2 1 1 . 1 1 1 . 2 5 . 1 2 . . . . . . 2 Specialist 1 | . . . . . . . . . . . . . . . . . . . . . . 1 . . . Hunter 11 | . . . . . . . . . . . . . . . . . . 4 2 . . 2 . . 3 Programmer 39 | . . . . . . 2 . 1 . . . . . 5 . . . 2 . 2 . 3 . 8 16 Behemoth 1 | . . . . . . . . . . . . . . . 1 . . . . . . . . . . Cetus Guard 2 | . . . . . . . . . . . . . . . . 2 . . . . . . . . . Enhanced Grunt 1 | . . . . . . . . . . . . . . . . . 1 . . . . . . . . Zionite 1 | . . . . 1 . . . . . . . . . . . . . . . . . . . . . Decomposer 4 | . . . . . . . . . . . . 1 . . . . . . 3 . . . . . . Packrat 1 | . . . . . . . . . . . . 1 . . . . . . . . . . . . . Samaritan 3 | . . . . . . . . 2 . 1 . . . . . . . . . . . . . . . Thug 3 | . . . . . . . . . . . . . . . 1 . . . 2 . . . . . . Savage 1 | . . . . . . . . . . . . . . . 1 . . . . . . . . . . Best Kill Streak 13 | 2 4 3 . 3 2 7 9 4 . 8 5 1 . 4 13 4 3 8 2 5 . 5 . 6 6 Combat Bots Only 9 | . 4 3 . 3 2 4 9 4 . 8 3 1 . 3 6 4 1 5 2 5 . 5 . 6 6 Max Kills in Single Turn 10 | 1 1 2 . 3 1 6 2 2 . 2 3 1 . 2 10 3 1 3 2 3 . 1 . 1 5 Gunslinging . | . . . . . . . . . . . . . . . . . . . . . . . . . . Exploded 5 | . . 2 . 3 . 3 2 2 . 2 2 . . . 3 3 . 3 2 3 . . . . 5 Melee 1 | . . . . . . . . . . 1 . . . . . . . . . . . . . . . Uniques/NPCs Destroyed . | . . . . . . . . . . . . . . . . . . . . . . . . . . Combat | -11 -10 -10 -10 -9 -8 -7 -7 -7 -7 -6 -6 -6 -6 -5 -5 -5 -5 -4 -4 -4 -4 -3 -3 -2 -1 -------- Run | Yrd Mat Min Exi Min Mat Fac Low Low Dat Pro Fac Low Low Fac Ext Cet Arc Fac Upp Upp Zhi Pro Res Res Acc Hostile Shots Fired 1367 | . 32 27 . 4 28 41 84 69 . 94 20 49 . 60 149 29 4 165 54 94 . 104 22 70 168 Missed 400 | . 10 7 . 3 11 12 34 24 . 32 15 18 . 19 36 8 1 41 21 29 . 19 5 15 40 Damage Taken 20236 | . 306 676 . 9 267 299 733 566 . 859 66 292 . 819 2701 619 140 1961 587 1359 . 1613 1952 1399 3013 Core 1285 | . 30 183 . . 15 38 19 20 . 44 6 16 . 37 106 47 . 119 35 74 . 160 189 72 75 Absorbed by Shields 706 | . . . . . . . . 56 . . . . . . 105 119 . 401 . . . 25 . . . Reduced by Siege Mode 737 | . . . . . . . . . . . . . . . . . . 82 . 20 . 154 . 129 352 Redirected to Shielding 299 | . . . . . 8 . . . . 37 . . . . 164 . . . . . . 90 . . . Ignored by Resistances 205 | . . . . . . . . . . . . . . 92 . . . 113 . . . . . . . Core Remaining (%) 81 | 100 . . . 14 97 . . . . 82 . . 97 . . . 81 . . . . 66 85 95 95 Volleys Fired 786 | 6 29 17 . 4 55 45 36 35 . 50 23 9 . 50 77 12 7 57 18 33 . 27 49 57 90 Largest 4 | 2 2 2 . 1 3 3 3 3 . 3 3 3 . 4 4 4 4 4 3 4 . 4 3 4 4 Hottest 441 | 60 80 120 . 30 140 121 146 168 . 220 255 185 . 213 228 270 270 270 268 308 . 238 236 331 441 Shots Fired 1645 | 12 55 22 . 5 101 70 83 43 . 59 29 13 . 152 181 42 27 97 38 95 . 100 51 134 236 Gun 536 | 12 35 2 . . 35 25 47 11 . 3 1 2 . 76 28 14 13 28 16 44 . 75 . 22 47 Cannon 1018 | . 20 8 . 1 57 38 29 27 . 43 26 11 . 76 139 27 14 61 20 46 . 25 51 112 187 Launcher 76 | . . 7 . 4 . 7 7 5 . 13 2 . . . 14 1 . 8 2 5 . . . . 1 Special 15 | . . 5 . . 9 . . . . . . . . . . . . . . . . . . . 1 Kinetic 475 | 6 29 2 . . 35 25 47 8 . . 1 2 . 74 62 16 4 10 . 34 . 55 1 35 29 Thermal 1053 | 6 21 13 . 1 66 38 29 30 . 46 26 11 . 78 105 25 23 79 36 56 . 45 49 79 191 Explosive 76 | . . 7 . 4 . 7 7 5 . 13 2 . . . 14 1 . 8 2 5 . . . . 1 Electromagnetic 40 | . 5 . . . . . . . . . . . . . . . . . . . . . 1 20 14 Robot Hit Streak 38 | 2 6 5 . 5 6 11 12 8 . 10 7 6 . 19 15 16 7 10 6 14 . 19 2 38 14 Robot Miss Streak 9 | 1 5 1 . . 4 2 4 3 . 3 2 1 . 7 8 5 2 9 4 5 . 2 1 3 3 Penetration Max 1 | . . . . . . . . . . . . . . . . 1 1 1 . . . . . . . Secondary Targets . | . . . . . . . . . . . . . . . . . . . . . . . . . . Autonomous 27 | . . . . . . . . . . . . . . . . . . . . . . . . . 27 Shots Hit Robots 894 | 7 32 6 . 3 46 33 55 23 . 23 6 10 . 85 103 33 19 38 19 52 . 74 2 76 149 Core Hits 637 | 4 13 8 . 9 21 42 45 24 . 29 8 4 . 59 112 27 11 59 15 28 . 22 . 26 71 Critical Kills 15 | . 1 . . . . . 2 1 . . . . . . . . 1 2 . 2 . 4 . . 2 Critical Parts Destroyed 6 | . . . . . . . . . . . . . . . . . . 1 . 1 . 4 . . . Critical Strikes 26 | . 1 . . . . . 2 1 . 1 . . . . . . 1 3 . 5 . 9 . . 3 Burn 1 | . . . . . . . . . . 1 . . . . . . . . . . . . . . . Meltdown 6 | . . . . . . . 1 1 . . . . . . . . . 1 . 1 . . . . 2 Destroy 15 | . 1 . . . . . 1 . . . . . . . . . 1 2 . 2 . 8 . . . Blast 3 | . . . . . . . . . . . . . . . . . . . . 2 . 1 . . . Corrupt 1 | . . . . . . . . . . . . . . . . . . . . . . . . . 1 Melee Attacks 12 | . . . . . . . . . . 12 . . . . . . . . . . . . . . . Impact . | . . . . . . . . . . . . . . . . . . . . . . . . . . Slashing 12 | . . . . . . . . . . 12 . . . . . . . . . . . . . . . Piercing . | . . . . . . . . . . . . . . . . . . . . . . . . . . Sneak Attacks 2 | . . . . . . . . . . 2 . . . . . . . . . . . . . . . Combat Hostiles . | . . . . . . . . . . . . . . . . . . . . . . . . . . Follow-up Attacks . | . . . . . . . . . . . . . . . . . . . . . . . . . . Damage Inflicted 38610 | 66 440 464 . 437 740 2194 2028 1161 . 1594 643 271 . 2383 5594 1586 590 3299 861 2216 . 2408 68 2919 6648 Guns 8982 | 66 177 . . . 330 384 632 219 . 66 . . . 1076 421 386 239 395 247 760 . 1649 . 687 1248 Cannons 17073 | . 263 122 . 18 403 319 624 274 . 208 171 271 . 1290 2348 648 351 651 353 812 . 759 68 2232 4888 Explosions 12140 | . . 342 . 419 . 1482 772 668 . 1015 472 . . . 2757 552 . 2244 261 644 . . . . 512 Melee 305 | . . . . . . . . . . 305 . . . . . . . . . . . . . . . Ramming 110 | . . . . . 7 9 . . . . . . . 17 68 . . 9 . . . . . . . Kinetic 8133 | 32 122 . . . 330 384 632 170 . . . . . 1010 1058 407 137 118 . 772 . 1293 32 739 897 Thermal 18085 | 34 275 122 . 18 403 787 624 323 . 274 171 271 . 1356 1711 627 453 997 600 800 . 1115 36 2009 5079 Explosive 11525 | . . 342 . 419 . 987 772 668 . 1015 472 . . . 2757 552 . 2175 261 644 . . . . 461 Electromagnetic 452 | . 43 . . . . 27 . . . . . . . . . . . . . . . . . 171 211 Impact . | . . . . . . . . . . . . . . . . . . . . . . . . . . Slashing 305 | . . . . . . . . . . 305 . . . . . . . . . . . . . . . Piercing . | . . . . . . . . . . . . . . . . . . . . . . . . . . Highest Corruption 15 | . . 4 4 4 . . . . . . . . . 1 1 8 8 1 1 2 2 5 15 8 15 Average Corruption 3 | . . 4 4 4 . . . . . . . . . 1 1 5 4 1 1 1 2 4 14 4 9 Corruption Purged 11 | . . . . . . . . . . . . . . . . . 8 . . . . . . 3 . Corruption Blocked . | . . . . . . . . . . . . . . . . . . . . . . . . . . Effects 181 | . . 1 11 18 . . . . . . . . . 3 15 8 4 7 4 17 6 20 10 10 47 Message Errors 36 | . . . 3 6 . . . . . . . . . 1 1 3 1 2 1 4 1 1 3 . 9 Matter Fused 45 | . . . 3 4 . . . . . . . . . 1 2 1 . 1 . 6 2 8 1 4 12 Heat Flow Errors 20 | . . . . 1 . . . . . . . . . 1 1 . . . 1 2 . 1 4 . 9 Energy Discharges 16 | . . . 1 3 . . . . . . . . . . 4 . . . 1 1 . 2 . . 4 Parts Rejected 1 | . . . . . . . . . . . . . . . . . . . . . . . . . 1 Parts Fused 1 | . . . . . . . . . . . . . . . 1 . . . . . . . . . . Data Loss (minor) 27 | . . 1 3 3 . . . . . . . . . . 1 1 1 2 . . 2 4 2 1 6 Data Loss (major) 15 | . . . 1 . . . . . . . . . . . 1 3 . . 1 1 1 . . 3 4 Misfires 10 | . . . . 1 . . . . . . . . . . 2 . 2 1 . . . 1 . 2 1 Alerts 4 | . . . . . . . . . . . . . . . 1 . . . . 1 . 2 . . . Weapon Failures 6 | . . . . . . . . . . . . . . . 1 . . 1 . 2 . 1 . . 1 Overload Shots . | . . . . . . . . . . . . . . . . . . . . . . . . . . Overflow Damage 1265 | . . 11 . 10 7 115 24 72 . 58 45 38 . 31 133 . 23 76 32 94 . 21 . 140 335 Projectiles 693 | . . . . . 7 . 24 14 . 9 . 38 . 31 33 . 23 3 . 15 . 21 . 140 335 Explosions 539 | . . 11 . 10 . 115 . 58 . 16 45 . . . 100 . . 73 32 79 . . . . . Melee 33 | . . . . . . . . . . 33 . . . . . . . . . . . . . . . Knockbacks 33 | . . . . . . . . . . . . . . . 2 . . . . 3 . 9 . 8 11 Impact . | . . . . . . . . . . . . . . . . . . . . . . . . . . Kinetic 30 | . . . . . . . . . . . . . . . 2 . . . . 3 . 8 . 8 9 Secondary 3 | . . . . . . . . . . . . . . . . . . . . . . 1 . . 2 Self-Inflicted Damage 930 | . . 51 . . 3 15 47 149 . 29 22 . . 65 192 55 . 146 72 43 . . . . 41 Shots 29 | . . 3 . . . 1 2 4 . 1 1 . . 1 8 3 . 2 1 1 . . . . 1 Rammed 12 | . . . . 3 1 1 . . . . . . . 2 4 . . 1 . . . . . . . Targets Rammed 14 | . . . . 3 1 2 . . . . . . . 3 4 . . 1 . . . . . . . Kicked . | . . . . . . . . . . . . . . . . . . . . . . . . . . Crushed 2 | . . . . . . 1 . . . . . . . 1 . . . . . . . . . . . Highest Temperature 431 | 40 94 72 . 250 126 18 79 220 . 431 358 66 . 247 400 102 250 240 343 341 . . . 40 384 Average Temperature 89 | 18 34 24 . 138 39 6 33 83 . 150 130 35 . 81 94 34 73 91 123 139 . . . 21 163 Received Heat Transfer 3098 | . 213 60 . . 171 51 276 146 . 132 18 48 . 162 392 45 30 362 . 301 . 322 9 117 243 Effects 10 | . . . . . . . . . . 5 . . . 3 1 . . 1 . . . . . . . Shutdowns 2 | . . . . . . . . . . 2 . . . . . . . . . . . . . . . Energy Bleed 1 | . . . . . . . . . . . . . . . 1 . . . . . . . . . . Interference 7 | . . . . . . . . . . 3 . . . 3 . . . 1 . . . . . . . Siege Activations 25 | . . . . . . . . . . . . . . . . 1 . 1 . 4 . 5 . 4 10 Total Turns 945 | . . . . . . . . . . . . . . . . 3 . 29 . 418 . 167 . 88 240 Longest Duration 184 | . . . . . . . . . . . . . . . . 3 . 29 . 184 . 94 . 57 47 Robots Corrupted 2 | . . . . . . . . . . . . . . . . . . . . . . . . . 2 Combat Hostiles . | . . . . . . . . . . . . . . . . . . . . . . . . . . Parts Fried 6 | . . . . . . . . . . . . . . . . . . . 2 . . . . . 4 Impact Corruptions 2 | . . . . . . . . . . . . . . . . . . . . . . . . . 2 Robots Melted 9 | . . . . . . . 1 1 . . . . . . 1 . . 1 . 3 . . . . 2 Combat Hostiles 8 | . . . . . . . 1 . . . . . . . 1 . . 1 . 3 . . . . 2 Parts Melted 49 | . 1 . . . . . . 4 . . . . . 2 10 . 3 1 3 1 . 2 . 1 21 Heat Transferred 21893 | 75 580 259 . 37 851 757 961 470 . 624 274 500 . 1903 2458 881 633 1290 870 1205 . 1258 37 1554 4416 Parts Sabotaged . | . . . . . . . . . . . . . . . . . . . . . . . . . . Parts Stolen . | . . . . . . . . . . . . . . . . . . . . . . . . . . Parts Stripped . | . . . . . . . . . . . . . . . . . . . . . . . . . . Power Chain Reactions . | . . . . . . . . . . . . . . . . . . . . . . . . . . Alert | -11 -10 -10 -10 -9 -8 -7 -7 -7 -7 -6 -6 -6 -6 -5 -5 -5 -5 -4 -4 -4 -4 -3 -3 -2 -1 ------- Run | Yrd Mat Min Exi Min Mat Fac Low Low Dat Pro Fac Low Low Fac Ext Cet Arc Fac Upp Upp Zhi Pro Res Res Acc Peak Influence 1132 | 10 276 170 . 182 126 290 . . . . 135 . . 223 712 767 491 1124 . . . . 50 230 1132 Initial 372 | . 6 2 . . 35 12 . . . . . . . . 82 372 226 171 . . . . . . 137 Average 181 | 4 81 58 . 77 38 57 . . . . 18 . . 116 249 520 466 519 . . . . 10 52 600 Maximum Alert Level 4 | . 1 . . . . 1 . . . . . . . 1 3 3 2 4 . . . . . 1 4 Low Security (%) 71 | 100 92 100 . 100 100 93 . . . . 100 . . 84 57 . . 4 . . . . 100 93 3 Level 1 9 | . 7 . . . . 6 . . . . . . . 15 12 10 9 20 . . . . . 6 30 Level 2 14 | . . . . . . . . . . . . . . . 28 82 90 63 . . . . . . 29 Level 3 3 | . . . . . . . . . . . . . . . . 7 . 6 . . . . . . 31 Level 4 . | . . . . . . . . . . . . . . . . . . 4 . . . . . . 5 Level 5 . | . . . . . . . . . . . . . . . . . . . . . . . . . . High Security . | . . . . . . . . . . . . . . . . . . . . . . . . . . Max Security . | . . . . . . . . . . . . . . . . . . . . . . . . . . Squads Dispatched 48 | . 2 . . . 1 4 . . . . 1 . . 4 4 1 . 13 . . . . 5 4 9 Investigation 8 | . . . . . . . . . . . 1 . . . 1 1 . 3 . . . . 1 . 1 Extermination 14 | . . . . . . 3 . . . . . . . 2 . . . 2 . . . . . 4 3 Reinforcement 16 | . 2 . . . 1 1 . . . . . . . 2 3 . . 1 . . . . 4 . 2 Assault 6 | . . . . . . . . . . . . . . . . . . 4 . . . . . . 2 Garrison 4 | . . . . . . . . . . . . . . . . . . 3 . . . . . . 1 Intercept . | . . . . . . . . . . . . . . . . . . . . . . . . . . Searches Triggered . | . . . . . . . . . . . . . . . . . . . . . . . . . . Construction Impeded 5 | . . . . . . . . . . . . . . 1 3 . . 1 . . . . . . . Haulers Reinforced 1 | . . . . . . . . . . . . . . . . . . . . . . . . . 1 Active Scanning Responses . | . . . . . . . . . . . . . . . . . . . . . . . . . . Cargo Convoy Interrupts . | . . . . . . . . . . . . . . . . . . . . . . . . . . Stealth | -11 -10 -10 -10 -9 -8 -7 -7 -7 -7 -6 -6 -6 -6 -5 -5 -5 -5 -4 -4 -4 -4 -3 -3 -2 -1 --------- Run | Yrd Mat Min Exi Min Mat Fac Low Low Dat Pro Fac Low Low Fac Ext Cet Arc Fac Upp Upp Zhi Pro Res Res Acc Distress Signals 28 | . 1 . . . 1 . . . . . . . . 2 7 2 . . . . . . 14 . 1 Communications Jammed 28 | . . . . . . . . . . . . . . . . . . 2 . . . . . . 26 Distress Signals 27 | . . . . . . . . . . . . . . . . . . 1 . . . . . . 26 Times Spotted 343 | . 12 12 . 6 17 16 20 7 . 16 5 3 . 24 49 14 7 28 9 15 . 11 12 15 45 Peak Tracking Total 12 | . 3 3 . 3 3 4 4 4 . 9 3 1 . 5 12 5 3 7 3 3 . 4 9 4 6 Tactical Retreats 12 | . . . . . . . . . . 3 . 1 . . 2 . . 1 1 1 . . . 2 1 Traps | -11 -10 -10 -10 -9 -8 -7 -7 -7 -7 -6 -6 -6 -6 -5 -5 -5 -5 -4 -4 -4 -4 -3 -3 -2 -1 ------- Run | Yrd Mat Min Exi Min Mat Fac Low Low Dat Pro Fac Low Low Fac Ext Cet Arc Fac Upp Upp Zhi Pro Res Res Acc Traps Triggered 9 | . . . . . . . . . . . 1 . . . 4 . . 1 . 1 . . . 1 1 Indirectly . | . . . . . . . . . . . . . . . . . . . . . . . . . . Trap Hack Attempts . | . . . . . . . . . . . . . . . . . . . . . . . . . . Triggered . | . . . . . . . . . . . . . . . . . . . . . . . . . . Disarmed . | . . . . . . . . . . . . . . . . . . . . . . . . . . Reprogrammed . | . . . . . . . . . . . . . . . . . . . . . . . . . . Reused . | . . . . . . . . . . . . . . . . . . . . . . . . . . Traps Extracted . | . . . . . . . . . . . . . . . . . . . . . . . . . . Installed . | . . . . . . . . . . . . . . . . . . . . . . . . . . Triggered 2 | . . . . . . . . 2 . . . . . . . . . . . . . . . . . Machines | -11 -10 -10 -10 -9 -8 -7 -7 -7 -7 -6 -6 -6 -6 -5 -5 -5 -5 -4 -4 -4 -4 -3 -3 -2 -1 ---------- Run | Yrd Mat Min Exi Min Mat Fac Low Low Dat Pro Fac Low Low Fac Ext Cet Arc Fac Upp Upp Zhi Pro Res Res Acc Machines Disabled 22 | . . . . 1 . 3 . . . . . . . 3 1 . 3 6 . . . 1 . 1 3 Max in Single Turn 3 | . . . . 1 . 3 . . . . . . . 2 1 . . 3 . . . 1 . 1 1 Garrison Access 4 | . . . . . . . . . . . 1 . . . . . . 1 . . . . 1 . 1 Energy Cycler 1 | . . . . . . . . . . . . . . . . . . . . . . . . . 1 Machines Repaired . | . . . . . . . . . . . . . . . . . . . . . . . . . . Machines Dismantled . | . . . . . . . . . . . . . . . . . . . . . . . . . . Machines Sabotaged . | . . . . . . . . . . . . . . . . . . . . . . . . . . Overloaded Fab Kills . | . . . . . . . . . . . . . . . . . . . . . . . . . . Hacking | -11 -10 -10 -10 -9 -8 -7 -7 -7 -7 -6 -6 -6 -6 -5 -5 -5 -5 -4 -4 -4 -4 -3 -3 -2 -1 --------- Run | Yrd Mat Min Exi Min Mat Fac Low Low Dat Pro Fac Low Low Fac Ext Cet Arc Fac Upp Upp Zhi Pro Res Res Acc Machines Accessed 71 | . 4 . 4 . 5 11 1 . 4 . 5 . . 7 3 1 1 7 2 1 9 . 3 . 3 Terminals 42 | . 4 . . . 5 10 . . . . 4 . . 5 3 1 . 6 . . . . 2 . 2 Fabricators 2 | . . . . . . . . . . . . . . 2 . . . . . . . . . . . Repair Stations . | . . . . . . . . . . . . . . . . . . . . . . . . . . Recycling Units . | . . . . . . . . . . . . . . . . . . . . . . . . . . Scanalyzers . | . . . . . . . . . . . . . . . . . . . . . . . . . . Garrison Access 5 | . . . . . . 1 . . . . 1 . . . . . . 1 . . . . 1 . 1 Total Hacks 260 | . 9 . 43 . 20 28 1 . 29 . 11 . . 16 9 2 7 17 5 1 48 . 9 . 5 Successful 191 | . 5 . 43 . 10 14 1 . 29 . 6 . . 7 4 1 7 3 5 1 48 . 6 . 1 Failed 69 | . 4 . . . 10 14 . . . . 5 . . 9 5 1 . 14 . . . . 3 . 4 Catastrophic 18 | . . . . . 2 5 . . . . 1 . . 1 1 1 . 4 . . . . . . 3 Database Lockouts . | . . . . . . . . . . . . . . . . . . . . . . . . . . Manual 56 | . 6 . 1 . 9 14 . . . . 3 . . 12 2 1 . 4 . . . 1 2 . 1 Terminals 114 | . 9 . . . 20 27 . . . . 9 . . 13 9 2 . 15 . . . . 7 . 3 Fabricators 3 | . . . . . . . . . . . . . . 3 . . . . . . . . . . . Repair Stations . | . . . . . . . . . . . . . . . . . . . . . . . . . . Recycling Units . | . . . . . . . . . . . . . . . . . . . . . . . . . . Scanalyzers . | . . . . . . . . . . . . . . . . . . . . . . . . . . Garrison Access 9 | . . . . . . 1 . . . . 2 . . . . . . 2 . . . . 2 . 2 Terminal Hacks 167 | . 2 . 43 . 7 9 1 . 29 . 3 . . 2 2 1 7 2 5 1 48 . 4 . 1 Record 102 | . . . 42 . . . . . 11 . . . . . . . 7 2 4 . 36 . . . . Part Schematic 14 | . . . . . . . . . 10 . . . . . . . . . . . 4 . . . . Robot Schematic 5 | . . . . . . . . . 5 . . . . . . . . . . . . . . . . Robot Analysis 4 | . . . . . . . . . . . . . . . . . . . . . 4 . . . . Prototype ID Bank 9 | . . . . . 1 1 . . 3 . . . . . . . . . . . 4 . . . . Open Door 4 | . . . . . . . 1 . . . . . . . . 1 . . 1 1 . . . . . Level Access Points 2 | . . . . . . . . . . . . . . . . . . . . . . . 1 . 1 Branch Access Points 4 | . . . . . 1 1 . . . . 1 . . 1 . . . . . . . . . . . Emergency Access Points 1 | . . . . . . 1 . . . . . . . . . . . . . . . . . . . Terminal Index 1 | . . . . . . 1 . . . . . . . . . . . . . . . . . . . Alert Level 3 | . . . . . . 1 . . . . 1 . . 1 . . . . . . . . . . . Unreport Threat 6 | . . . . . 2 2 . . . . 1 . . . 1 . . . . . . . . . . Locate Traps 5 | . 1 . . . 1 2 . . . . . . . . . . . . . . . . 1 . . Recall Investigation 1 | . . . . . . . . . . . . . . . 1 . . . . . . . . . . Recall Reinforcements 1 | . . . . . . . . . . . . . . . . . . . . . . . 1 . . Hauler Manifests 1 | . . . . . . . . . . . . . . . . . . . . . . . 1 . . Registered Components 2 | . 1 . . . 1 . . . . . . . . . . . . . . . . . . . . Zone Layout 1 | . . . . . 1 . . . . . . . . . . . . . . . . . . . . Derelict Proto ID Bank 1 | . . . 1 . . . . . . . . . . . . . . . . . . . . . . Fabricator Hacks 2 | . . . . . . . . . . . . . . 2 . . . . . . . . . . . Build 2 | . . . . . . . . . . . . . . 2 . . . . . . . . . . . Repair Station Hacks . | . . . . . . . . . . . . . . . . . . . . . . . . . . Recycling Unit Hacks . | . . . . . . . . . . . . . . . . . . . . . . . . . . Scanalyzer . | . . . . . . . . . . . . . . . . . . . . . . . . . . Garrison Access Hacks 2 | . . . . . . . . . . . 1 . . . . . . . . . . . 1 . . Seal Access 2 | . . . . . . . . . . . 1 . . . . . . . . . . . 1 . . Unauthorized Hacks 20 | . 3 . . . 3 5 . . . . 2 . . 3 2 . . 1 . . . . 1 . . Terminals 20 | . 3 . . . 3 5 . . . . 2 . . 3 2 . . 1 . . . . 1 . . Assimilate 3 | . . . . . . 3 . . . . . . . . . . . . . . . . . . . Botnet 17 | . 3 . . . 3 2 . . . . 2 . . 3 2 . . 1 . . . . 1 . . Fabricators . | . . . . . . . . . . . . . . . . . . . . . . . . . . Repair Stations . | . . . . . . . . . . . . . . . . . . . . . . . . . . Recycling Units . | . . . . . . . . . . . . . . . . . . . . . . . . . . Scanalyzers . | . . . . . . . . . . . . . . . . . . . . . . . . . . Garrison Access . | . . . . . . . . . . . . . . . . . . . . . . . . . . Data Cores Recovered 1 | . . . . . 1 . . . . . . . . . . . . . . . . . . . . Used . | . . . . . . . . . . . . . . . . . . . . . . . . . . Hacking Detections 44 | . 3 . . . 5 9 . . . . 5 . . 5 3 1 . 7 . . . . 3 . 3 Full Trace Events 5 | . . . . . . . . . . . . . . . . 1 . 3 . . . . . . 1 Feedback Events . | . . . . . . . . . . . . . . . . . . . . . . . . . . Feedback Blocked . | . . . . . . . . . . . . . . . . . . . . . . . . . . Robot Schematics Acquired 5 | . . . . . . . . . 5 . . . . . . . . . . . . . . . . Robots Built 3 | . . . . . . . . . . . . . . 3 . . . . . . . . . . . Authchips . | . . . . . . . . . . . . . . . . . . . . . . . . . . Time 169 | . . . . . . . . . . . . . . 169 . . . . . . . . . . . Total Robot Build Rating 18 | . . . . . . . . . . . . . . 18 . . . . . . . . . . . Part Schematics Acquired 14 | . . . . . . . . . 10 . . . . . . . . . . . 4 . . . . Parts Built 2 | . . . . . . . . . . . . . . 2 . . . . . . . . . . . Authchips . | . . . . . . . . . . . . . . . . . . . . . . . . . . Time 69 | . . . . . . . . . . . . . . 69 . . . . . . . . . . . Total Part Build Rating 18 | . . . . . . . . . . . . . . 18 . . . . . . . . . . . Parts Repaired . | . . . . . . . . . . . . . . . . . . . . . . . . . . Time . | . . . . . . . . . . . . . . . . . . . . . . . . . . Parts Recycled . | . . . . . . . . . . . . . . . . . . . . . . . . . . Recycled Matter . | . . . . . . . . . . . . . . . . . . . . . . . . . . Retrieved Matter . | . . . . . . . . . . . . . . . . . . . . . . . . . . Retrieved Components . | . . . . . . . . . . . . . . . . . . . . . . . . . . Parts Scanalyzed . | . . . . . . . . . . . . . . . . . . . . . . . . . . Part Schematics Acquired . | . . . . . . . . . . . . . . . . . . . . . . . . . . Parts Damaged . | . . . . . . . . . . . . . . . . . . . . . . . . . . Bothacking | -11 -10 -10 -10 -9 -8 -7 -7 -7 -7 -6 -6 -6 -6 -5 -5 -5 -5 -4 -4 -4 -4 -3 -3 -2 -1 ------------ Run | Yrd Mat Min Exi Min Mat Fac Low Low Dat Pro Fac Low Low Fac Ext Cet Arc Fac Upp Upp Zhi Pro Res Res Acc Used RIF Installer . | . . . . . . . . . . . . . . . . . . . . . . . . . . Robots Hacked . | . . . . . . . . . . . . . . . . . . . . . . . . . . Non-combat . | . . . . . . . . . . . . . . . . . . . . . . . . . . Combat . | . . . . . . . . . . . . . . . . . . . . . . . . . . Robot Hacks Applied . | . . . . . . . . . . . . . . . . . . . . . . . . . . Relay Couplers Released 7 | . . . . . . . . . . . . . . 4 . . . 1 . . . . . . 2 Machine Destruction 3 | . . . . . . . . . . . . . . . . . . 1 . . . . . . 2 Programmers 4 | . . . . . . . . . . . . . . 4 . . . . . . . . . . . Fabnet Peak Effective % . | . . . . . . . . . . . . . . . . . . . . . . . . . . Robots Rewired 15 | . 1 . . . . . . . . . . . . . 14 . . . . . . . . . . Allies Hacked 1 | . . . . . . . . . . . . . . 1 . . . . . . . . . . . Hacks Repelled . | . . . . . . . . . . . . . . . . . . . . . . . . . . Allies | -11 -10 -10 -10 -9 -8 -7 -7 -7 -7 -6 -6 -6 -6 -5 -5 -5 -5 -4 -4 -4 -4 -3 -3 -2 -1 -------- Run | Yrd Mat Min Exi Min Mat Fac Low Low Dat Pro Fac Low Low Fac Ext Cet Arc Fac Upp Upp Zhi Pro Res Res Acc Total Allies 42 | . 1 . . 3 . . . . . . . . . 3 24 5 . . 3 . . . 3 . . Largest Group 9 | . 1 1 . 2 1 . . . . . . . . 3 9 9 6 3 3 . . . 3 . . Highest-Rated Group 725 | . 16 16 . 44 31 . . . . . . . . 126 396 725 632 281 138 . . . 138 . . Highest-Rated Ally 159 | . 16 16 . 31 31 . . . . . . . . 42 159 159 159 96 46 . . . 46 . . Total Orders 1 | . . . . . . . . . . . . . . . . 1 . . . . . . . . . STAY 1 | . . . . . . . . . . . . . . . . 1 . . . . . . . . . Ally Attacks 303 | . 13 5 . 2 5 . . . . . . . . 11 111 72 28 26 25 . . . 5 . . Total Damage 8222 | . 174 82 . 21 108 . . . . . . . . 282 2262 2489 1071 1129 433 . . . 171 . . Kills 48 | . 4 2 . 1 . . . . . . . . . 2 15 8 3 7 5 . . . 1 . . Allies Corrupted . | . . . . . . . . . . . . . . . . . . . . . . . . . . Allies Melted . | . . . . . . . . . . . . . . . . . . . . . . . . . . Intel | -11 -10 -10 -10 -9 -8 -7 -7 -7 -7 -6 -6 -6 -6 -5 -5 -5 -5 -4 -4 -4 -4 -3 -3 -2 -1 ------- Run | Yrd Mat Min Exi Min Mat Fac Low Low Dat Pro Fac Low Low Fac Ext Cet Arc Fac Upp Upp Zhi Pro Res Res Acc Robot Analysis Total 4 | . . . . . . . . . . . . . . . . . . . . . 4 . . . . Derelict Logs Recovered 18 | . . 1 . 2 . . 1 2 . 3 . 2 2 . . . . . 2 3 . . . . . Drone Launches . | . . . . . . . . . . . . . . . . . . . . . . . . . . Drone Recoveries . | . . . . . . . . . . . . . . . . . . . . . . . . . . Decoded 0b10 Intel 61 | . . . . . . . . . . . 15 . . 26 20 . . . . . . . . . . Patrols 18 | . . . . . . . . . . . . . . 5 13 . . . . . . . . . . Investigations 3 | . . . . . . . . . . . 2 . . . 1 . . . . . . . . . . Reinforcements 4 | . . . . . . . . . . . . . . 2 2 . . . . . . . . . . Guards 36 | . . . . . . . . . . . 13 . . 19 4 . . . . . . . . . . Exploration | -11 -10 -10 -10 -9 -8 -7 -7 -7 -7 -6 -6 -6 -6 -5 -5 -5 -5 -4 -4 -4 -4 -3 -3 -2 -1 ------------- Run | Yrd Mat Min Exi Min Mat Fac Low Low Dat Pro Fac Low Low Fac Ext Cet Arc Fac Upp Upp Zhi Pro Res Res Acc Turns Passed 27919 | 85 982 589 656 785 1534 1790 1536 1356 102 825 952 1674 203 2162 2617 458 385 1119 1007 2274 281 946 920 1423 1258 Spaces Moved 14045 | 59 634 353 497 507 794 863 929 922 79 440 577 1031 127 710 814 182 128 586 569 1057 161 402 430 637 557 Core 2 | 2 . . . . . . . . . . . . . . . . . . . . . . . . . Treads 7963 | . 173 . . 3 222 863 666 . . . . . . 513 814 182 128 586 569 1057 161 402 430 637 557 Legs . | . . . . . . . . . . . . . . . . . . . . . . . . . . Wheels 6080 | 57 461 353 497 504 572 . 263 922 79 440 577 1031 127 197 . . . . . . . . . . . Hover . | . . . . . . . . . . . . . . . . . . . . . . . . . . Flight . | . . . . . . . . . . . . . . . . . . . . . . . . . . Fastest Speed 50 | 50 90 130 130 145 108 160 130 130 130 130 130 160 160 160 250 160 160 158 158 158 160 158 158 146 146 Average Speed 162 | 88 133 144 130 146 139 160 151 130 130 130 146 160 160 256 250 178 162 158 158 159 160 159 182 171 147 Slowest Speed 320 | 90 160 145 145 320 240 160 160 130 130 130 160 160 160 320 250 250 163 165 158 160 160 160 245 240 148 Overloaded Moves . | . . . . . . . . . . . . . . . . . . . . . . . . . . Propulsion Burnouts . | . . . . . . . . . . . . . . . . . . . . . . . . . . Robots Hopped . | . . . . . . . . . . . . . . . . . . . . . . . . . . Cave-ins Triggered 5 | . . 1 . . . . . . . . . . . . . . . . . . . . 4 . . Exploration Rate (%) 55 | 5 83 61 91 87 38 25 98 92 68 64 21 95 21 23 76 69 75 18 71 87 62 62 15 22 20 Regions Visited 25 Branch Regions 16 Pre-discovered Areas 9 | . . . 1 . . . . 1 1 1 . . . . . . . . 1 1 3 . . . . Known Exits Taken 7 | . . . . . 1 1 . . . . 1 . . 1 . . 1 . . . . . 1 1 . Unknown Exits Taken 18 | 1 1 1 1 1 . . 1 1 1 1 . 1 1 . 1 1 . 1 1 1 1 1 . . . Scrap Searched 23 | . . . . 3 . . 3 5 . 4 . 1 . . . . . . 4 3 . . . . . Spaces Dug 278 | . . 17 . . 14 11 . 3 . 22 17 . . 12 6 . . 75 . . . . 48 27 26 Terrain Destroyed 1356 | . . 64 . 37 14 58 114 54 . 129 30 . . 47 236 26 4 188 41 121 . 19 48 42 84 Melee 2 | . . . . . . . . . . 2 . . . . . . . . . . . . . . . Projectile 385 | . . 5 . . 14 12 8 5 . 8 19 . . 30 40 3 4 38 9 26 . 19 48 42 55 AOE 969 | . . 59 . 37 . 46 106 49 . 119 11 . . 17 196 23 . 150 32 95 . . . . 29 Terrain Rammed . | . . . . . . . . . . . . . . . . . . . . . . . . . . Walls Destroyed . | . . . . . . . . . . . . . . . . . . . . . . . . . . Machines Disabled . | . . . . . . . . . . . . . . . . . . . . . . . . . . Actions | -11 -10 -10 -10 -9 -8 -7 -7 -7 -7 -6 -6 -6 -6 -5 -5 -5 -5 -4 -4 -4 -4 -3 -3 -2 -1 --------- Run | Yrd Mat Min Exi Min Mat Fac Low Low Dat Pro Fac Low Low Fac Ext Cet Arc Fac Upp Upp Zhi Pro Res Res Acc Total 17861 | 77 717 400 501 541 1124 1217 989 1035 78 619 659 1044 127 953 1240 290 294 690 648 1572 184 642 516 876 828 Wait 2121 | . 25 7 . 18 206 255 11 63 . 105 27 3 . 116 54 70 138 18 53 455 . 198 13 137 149 Move 14018 | 58 633 352 496 506 793 862 928 921 78 439 576 1030 126 709 813 181 127 585 568 1056 160 401 428 636 556 Hop . | . . . . . . . . . . . . . . . . . . . . . . . . . . Pick Up 163 | 6 16 4 2 5 16 11 3 6 . 4 10 1 1 16 9 4 8 7 3 10 . . 7 9 5 Fast Attach 54 | 7 . . . . 3 . . 2 . . 3 . . 4 . 3 . . . 3 11 4 7 6 1 Attach 70 | . 2 3 1 . 8 2 1 5 . 4 3 . . 5 6 1 1 4 2 5 . 5 4 1 7 Detach 6 | . . . . . 2 . . . . . . . . 1 . . . . . . . 2 . . 1 Swap 173 | . 7 10 2 2 20 20 5 3 . 2 9 1 . 26 10 8 4 10 2 3 2 2 2 12 11 Drop 176 | . 3 7 . 3 20 20 5 . . 3 8 . . 23 2 11 9 8 2 7 11 3 5 18 8 Fire 786 | 6 29 17 . 4 55 45 36 35 . 50 23 9 . 50 77 12 7 57 18 33 . 27 49 57 90 Melee 12 | . . . . . . . . . . 12 . . . . . . . . . . . . . . . Ram 1 | . . . . . 1 . . . . . . . . . . . . . . . . . . . . Kick . | . . . . . . . . . . . . . . . . . . . . . . . . . . Crush 13 | . . . . 3 . 2 . . . . . . . 3 4 . . 1 . . . . . . . Escape Stasis 9 | . . . . . . . . . . . . . . . 8 . . . . . . . 1 . . Rewire 259 | . 2 . . . . . . . . . . . . . 257 . . . . . . . . . . Trap . | . . . . . . . . . . . . . . . . . . . . . . . . . . Miscellaneous . | . . . . . . . . . . . . . . . . . . . . . . . . . . Route ------- -11/Scrapyard -10/Materials (discovered 5 exits: [*Mat x2] / [*Min x2] / [*Sub]) -10/Mines (discovered 3 exits: [*Mat x2] / *Exi) -10/Exiles -9/Mines -8/Materials -7/Factory (discovered 3 exits: Sto / *Low x2) -7/Lower Caves -7/Lower Caves -7/Data Miner -6/Proximity Caves -6/Factory (discovered 2 exits: *Low x2) -6/Lower Caves -6/Lower Caves -5/Factory (discovered 6 exits: *Fac x2 / Upp x2 / *Ext x2) -5/Extension (discovered 3 exits: *Fac x2 / *Cet) -5/Cetus (discovered 2 exits: *Fac / *Arc) -5/Archives (discovered 3 exits: *Fac / [*Hub x2]) -4/Factory (discovered 2 exits: *Res / *Upp) -4/Upper Caves -4/Upper Caves (discovered 2 exits: *Res / *Zhi) -4/Zhirov -3/Proximity Caves -3/Research (discovered 4 exits: *Res x3 / Qua) -2/Research -1/Access To Epsilon Eridani History --------- Turn | Location | Event 9 | -11/Scrapyard | Discovered new exit (range 15) 86 | -11/Scrapyard | Entered Materials 180 | -10/Materials | Discovered new exit (range 13) 312 | -10/Materials | Build established: Mutant 346 | -10/Materials | Discovered new exit (range 16) 499 | -10/Materials | Discovered new exit (range 5) 592 | -10/Materials | Discovered new exit (range 10) 818 | -10/Materials | Discovered new exit (range 10) 1068 | -10/Materials | Entered Mines 1068 | -10/Mines | Accompanied by 1 ally 1145 | -10/Mines | Learned Materials terminal intel 1188 | -10/Mines | Deemed a non-threat by the Exiles lab entrance 1190 | -10/Mines | Discovered new exit (range 5) 1237 | -10/Mines | Discovered new exit (range 9) 1440 | -10/Mines | Discovered new exit (range 9) 1441 | -10/Mines | Received a Rocket Launcher from a helpful Derelict 1572 | -10/Mines | Assembled infested the area 1620 | -10/Mines | Crushed by falling debris 1623 | -10/Mines | Core integrity fell below 50% 1657 | -10/Mines | Core integrity fell below 20% 1657 | -10/Mines | Entered Exiles 1679 | -10/Exiles | Lost 4 parts (1p1n1u1w) 1689 | -10/Exiles | Met 8R-AWN 1711 | -10/Exiles | Met EX-HEX 1747 | -10/Exiles | Met EX-BIN 1768 | -10/Exiles | Aligned with FarCom system 1769 | -10/Exiles | Given EX-Vault access code 1802 | -10/Exiles | Opened EX-Vault 1849 | -10/Exiles | Found AWS/Thermal 1908 | -10/Exiles | Warned to stay clear of 0b10 Research branches 1946 | -10/Exiles | Met EX-DEC 1952 | -10/Exiles | Learned location of Zion (-6) 2020 | -10/Exiles | Visited The Gauntlet 2296 | -10/Exiles | Discovered new exit (range 14) 2313 | -10/Exiles | Left Exiles lab with AWS/Thermal 2313 | -10/Exiles | Entered Mines 2316 | -9/Mines | Received a Mining Laser from a helpful Derelict 2422 | -9/Mines | Learned Materials terminal intel 2563 | -9/Mines | Learned location of 1 exit from Materials 2954 | -9/Mines | Discovered new exit (range 8) 3098 | -9/Mines | Entered Materials 3098 | -8/Materials | Accompanied by 1 ally 3098 | -8/Materials | Evolved 4 slots: Propulsion x1, Utility x2, Weapon x1 3099 | -8/Materials | Identified exit to Factory 3100 | -8/Materials | Loaded intel: 12 terminal locations 3103 | -8/Materials | Led the pair of lost Derelicts to an unsafe place 3382 | -8/Materials | Build established: Skirmisher 3500 | -8/Materials | Lost 3 parts (1p1n1w) 4365 | -8/Materials | Build established: Scavenger-Skirmisher 4632 | -8/Materials | Entered Factory 4632 | -7/Factory | Evolved 2 slots: Propulsion x1, Utility x1 5835 | -7/Factory | Identified exit to Storage 5835 | -7/Factory | Identified exit to Lower Caves 6422 | -7/Factory | Entered Lower Caves 6423 | -7/Lower Caves | Encountered a Warlord checkpoint 6711 | -7/Lower Caves | Attracted the attention of an 0b10 checkpoint 6731 | -7/Lower Caves | Build established: Scavenger-Gunner 7591 | -7/Lower Caves | Destroyed 9 combat bots 7641 | -7/Lower Caves | Discovered new exit (range 16) 7838 | -7/Lower Caves | Learned Factory emergency access door positions 7857 | -7/Lower Caves | Build established: Gunner 7958 | -7/Lower Caves | Entered another Lower Caves area 7999 | -7/Lower Caves | Lost 6 parts (2n3u1w) 8316 | -7/Lower Caves | Build established: Tank 8347 | -7/Lower Caves | Learned location of Extension (-5) 8415 | -7/Lower Caves | Attracted the attention of an 0b10 checkpoint 8487 | -7/Lower Caves | Learned Factory garrison access intel 8566 | -7/Lower Caves | Discovered new exit (range 11) 9314 | -7/Lower Caves | Entered Data Miner 9314 | -7/Data Miner | Discovered new exit (range 6) 9339 | -7/Data Miner | Met Data Miner 9364 | -7/Data Miner | Learned location of Section 7 (-2) 9364 | -7/Data Miner | Acquired the access code to Warlord's prototype stash 9385 | -7/Data Miner | Received God Mode back door access code from Data Miner 9416 | -7/Data Miner | Entered Proximity Caves 9416 | -6/Proximity Caves | Spotted B-75 Beast 9426 | -6/Proximity Caves | Learned 4 Factory zone layouts 9848 | -6/Proximity Caves | Attracted the attention of an 0b10 checkpoint 9922 | -6/Proximity Caves | Lost 7 parts (2n3u2w) 9931 | -6/Proximity Caves | Destroyed 8 combat bots 10144 | -6/Proximity Caves | Learned Factory stockpile data 10145 | -6/Proximity Caves | Discovered new exit (range 6) 10162 | -6/Proximity Caves | Build established: Mutant 10241 | -6/Proximity Caves | Entered Factory 10241 | -6/Factory | Evolved 2 slots: Utility x2 10242 | -6/Factory | Identified exit to Lower Caves 10245 | -6/Factory | Loaded intel: 4 garrison access locations 10680 | -6/Factory | Build established: Derelict-Skirmisher 11193 | -6/Factory | Entered Lower Caves 11326 | -6/Lower Caves | Learned Factory terminal intel 11507 | -6/Lower Caves | Build established: Derelict-Tank 11604 | -6/Lower Caves | Spotted B-75 Beast 12114 | -6/Lower Caves | Attracted the attention of an 0b10 checkpoint 12766 | -6/Lower Caves | Discovered new exit (range 15) 12856 | -6/Lower Caves | Learned Factory terminal intel 12867 | -6/Lower Caves | Entered another Lower Caves area 12928 | -6/Lower Caves | Learned Factory terminal intel 13017 | -6/Lower Caves | Discovered new exit (range 8) 13024 | -6/Lower Caves | Learned 12 Factory zone layouts 13065 | -6/Lower Caves | Build established: Mutant 13070 | -6/Lower Caves | Entered Factory 13070 | -5/Factory | Evolved 2 slots: Propulsion x1, Weapon x1 13072 | -5/Factory | Loaded intel: 28 terminal locations 13251 | -5/Factory | Discovered new exit (range 12) 13298 | -5/Factory | Found Prototype Launcher 13298 | -5/Factory | Identified Scatter Rocket Array 13384 | -5/Factory | Fabricated Quantum Reactor (x2) 13426 | -5/Factory | Build established: Scavenger-Skirmisher 14419 | -5/Factory | Found Prototype Launcher 14419 | -5/Factory | Identified Tesla Bomb Launcher 14426 | -5/Factory | Fabricated C-35 Carver? 14676 | -5/Factory | Discovered new exit (range 8) 14702 | -5/Factory | Identified exit to Factory 14768 | -5/Factory | P-70 Sage assimilated allied Carver 6b 14885 | -5/Factory | Identified exit to Upper Caves 14885 | -5/Factory | Identified exit to Extension 15232 | -5/Factory | Entered Extension 15335 | -5/Extension | Build established: Skirmisher 15402 | -5/Extension | Rescued a captive Derelict 15403 | -5/Extension | Rescued a captive Derelict 15482 | -5/Extension | Rescued a captive Derelict 15585 | -5/Extension | Lost 3 allies 16154 | -5/Extension | Rescued a captive Derelict 16155 | -5/Extension | Rescued a captive Derelict 16157 | -5/Extension | Disrupted transfer network 16184 | -5/Extension | Rescued a captive Derelict 16185 | -5/Extension | Rescued a captive Derelict 16327 | -5/Extension | Lost 3 allies 16393 | -5/Extension | Spotted B-75 Beast 16397 | -5/Extension | Lost 4 allies 16431 | -5/Extension | Destroyed B-75 Beast 16674 | -5/Extension | Build established: Tank 17022 | -5/Extension | Spotted B-75 Beast 17044 | -5/Extension | Allies destroyed B-75 Beast 17087 | -5/Extension | Discovered exit to Factory (range 3) 17374 | -5/Extension | Rescued a captive Derelict 17375 | -5/Extension | Rescued a captive Derelict 17459 | -5/Extension | Rescued A7 17791 | -5/Extension | Discovered exit to Factory (range 10) 17794 | -5/Extension | Discovered new exit (range 6) 17849 | -5/Extension | Entered Cetus 17849 | -5/Cetus | Accompanied by 9 allies (A7) 17854 | -5/Cetus | Acquired a Cetus Manufacturing Module code from A7 17881 | -5/Cetus | Spotted Cetus Guard 17881 | -5/Cetus | Spotted Cetus Guard 17884 | -5/Cetus | Spotted Cetus Guard 17885 | -5/Cetus | Spotted Cetus Guard 17888 | -5/Cetus | Destroyed Cetus Guard 17895 | -5/Cetus | Allies destroyed Cetus Guard 17898 | -5/Cetus | Allies destroyed Cetus Guard 17907 | -5/Cetus | Allies destroyed Cetus Guard 17934 | -5/Cetus | Lost 4 allies 18052 | -5/Cetus | Escorted A7 to Cetus Mainframe 18071 | -5/Cetus | Started Cetus Manufacturing Module 18096 | -5/Cetus | Manufactured an Enhanced Grunt 18121 | -5/Cetus | Manufactured an Enhanced Grunt 18146 | -5/Cetus | Manufactured an Enhanced Grunt 18159 | -5/Cetus | Discovered new exit (range 15) 18171 | -5/Cetus | Manufactured an Enhanced Grunt 18188 | -5/Cetus | Spotted Cetus Guard 18188 | -5/Cetus | Spotted Cetus Guard 18191 | -5/Cetus | Spotted Cetus Guard 18193 | -5/Cetus | Spotted Cetus Guard 18196 | -5/Cetus | Manufactured an Enhanced Grunt 18204 | -5/Cetus | Allies destroyed Cetus Guard 18213 | -5/Cetus | Allies destroyed Cetus Guard 18215 | -5/Cetus | Destroyed Cetus Guard 18217 | -5/Cetus | Allies destroyed Cetus Guard 18223 | -5/Cetus | Discovered exit to Factory (range 16) 18241 | -5/Cetus | Met Revision 17 18259 | -5/Cetus | Build established: Scavenger-Tank 18307 | -5/Cetus | Entered Archives 18307 | -5/Archives | Accompanied by 6 allies (A7) 18312 | -5/Archives | Received a hacking code to weaken MAIN.C 18362 | -5/Archives | Discovered new exit (range 15) 18378 | -5/Archives | Discovered exit to Factory (range 16) 18548 | -5/Archives | Unable to access archive contents 18556 | -5/Archives | Discovered new exit (range 16) 18692 | -5/Archives | Entered Factory 18692 | -4/Factory | Accompanied by 3 allies 18692 | -4/Factory | Evolved 2 slots: Power x1, Propulsion x1 18693 | -4/Factory | Loaded intel: 26 terminal locations 19074 | -4/Factory | Garrison activated, responded to threat 19234 | -4/Factory | Discovered new exit (range 8) 19420 | -4/Factory | Found Hvy. Insulated Plating 19442 | -4/Factory | First assault squad dispatched 19560 | -4/Factory | Discovered new exit (range 10) 19811 | -4/Factory | Entered Upper Caves 20006 | -4/Upper Caves | Learned location of 1 exit from Research 20084 | -4/Upper Caves | Learned Research garrison access intel 20113 | -4/Upper Caves | A Commander dispatched an escort 20160 | -4/Upper Caves | Learned Armory emergency access door positions 20662 | -4/Upper Caves | Discovered new exit (range 13) 20818 | -4/Upper Caves | Entered another Upper Caves area 20921 | -4/Upper Caves | Found DCF Scrap (11 items) 21197 | -4/Upper Caves | Encountered a Warlord checkpoint 21470 | -4/Upper Caves | Lost 5 parts (1p1u3w) 21623 | -4/Upper Caves | Discovered new exit (range 7) 21650 | -4/Upper Caves | Learned 8 Research zone layouts 22519 | -4/Upper Caves | Learned location of Armory (-4) 22718 | -4/Upper Caves | Discovered new exit (range 12) 22808 | -4/Upper Caves | Learned 4 Research zone layouts 22988 | -4/Upper Caves | Spotted B-86 Titan 23092 | -4/Upper Caves | Entered Zhirov 23092 | -4/Zhirov | Discovered new exit (range 3) 23123 | -4/Zhirov | Met Zhirov 23154 | -4/Zhirov | Learned location of Quarantine (-3) 23154 | -4/Zhirov | Learned location of Testing (-2) 23154 | -4/Zhirov | Learned location of Command (-1) 23187 | -4/Zhirov | Zhirov requested help retrieving the SGEMP Prototype 23234 | -4/Zhirov | Found Alien Artifact 23234 | -4/Zhirov | Identified Integrated Dissipator 23234 | -4/Zhirov | Installed Integrated Dissipator, increased core heat dissipation (+20) 23373 | -4/Zhirov | Entered Proximity Caves 23625 | -3/Proximity Caves | Acquired the password to a Derelict Tinkerer's latest research 23665 | -3/Proximity Caves | Found Prototype Special Weapon 23665 | -3/Proximity Caves | Identified Molecular Deconstructor 23756 | -3/Proximity Caves | Build established: Derelict-Gunner 23921 | -3/Proximity Caves | Caught by Unaware searching for contraband prototypes 24286 | -3/Proximity Caves | Discovered new exit (range 9) 24319 | -3/Proximity Caves | Entered Research 24319 | -3/Research | Evolved 2 slots: Utility x2 24320 | -3/Research | Identified exit to Quarantine 24322 | -3/Research | Loaded intel: 4 garrison access locations 24486 | -3/Research | Identified exit to Research 24519 | -3/Research | Revision forces began assault on 0b10 24584 | -3/Research | Met up with Revision 17++ 24616 | -3/Research | Build established: Derelict-Skirmisher 24670 | -3/Research | Found Prototype Protection 24673 | -3/Research | Found Prototype Protection 24673 | -3/Research | Identified Centrium Heavy Armor Plating (x2) 24975 | -3/Research | Build established: Hacker-Skirmisher 24994 | -3/Research | Crushed by falling debris 25002 | -3/Research | Crushed by falling debris 25002 | -3/Research | System corruption reached 10% 25012 | -3/Research | Crushed by falling debris 25015 | -3/Research | Crushed by falling debris 25019 | -3/Research | Research terminal network offline 25046 | -3/Research | Lost 5 parts (1p1n3w) 25224 | -3/Research | Spotted Striker 25232 | -3/Research | Spotted Striker 25239 | -3/Research | Entered another Research area 25239 | -2/Research | Evolved 2 slots: Propulsion x1, Utility x1 25259 | -2/Research | Lost 4 allies 25563 | -2/Research | Build established: Scavenger-Tank 25619 | -2/Research | Found Prototype Device 25619 | -2/Research | Identified Exp. Transmission Jammer 26234 | -2/Research | Build established: Hacker-Tank 26633 | -2/Research | Discovered new exit (range 5) 26660 | -2/Research | Identified exit to Access 26662 | -2/Research | Entered Access 26662 | -1/Access | Evolved 2 slots: Propulsion x2 27267 | -1/Access | AWS/Thermal suddenly broke down 27348 | -1/Access | System corruption reached 10% 27375 | -1/Access | Identified exit to Surface 27756 | -1/Access | Energy Cycler disabled 27912 | -1/Access | First assault squad dispatched 27920 | *** | Escaped! Last Messages --------------- data lost. 27899_ Dropped Disruptor Cannon. 27900_ Dropped Enh. Nova Cannon. 27901_ Entropy package melds with Reinforced Barrier. 27903_ System corrupted: Matter fused (-8). 27904_ Reinforced Barrier disintegrates. 27904_ Earth destabilizing. 27907_ Earth disintegrates. 27907_ Earth destabilizing. 27907_ Reinforced Barrier destabilizing. 27908_ Earth disintegrates. 27911_ Reinforced Barrier disintegrates. 27912_ Concrete disintegrates. 27912_ ALERT: Significant disruption in Zone 9K, assault force dispatched. 27914_ Earth disintegrates. 27916_ The Access Shell folds into the floor. [Achievement: Tester] [Achievement: Epsilon Run] Map ----- +----------------------------------------------------+ | ????????????????????????? # ??#= | | ???????????????????????????# """ """ # | | ???????????????????????????# "?"S""" + | | ???????????????????????????? # | | ???????????????????????????# ??# | | ???????????????????????????#########????#"######## | | ????????????????????????????????????????## | | ?????????????????????????????????????????# | | ?????????????????????????????????????????# | | ?????????????????????????????????????????# | | ?????????????????????????????????????????# | | ?????????????????????????????????????????# | | ?????????????????????????????????????????# | | ?????????????????????????????????????????# | | ?????????????????????BB????BB????????????# | | ?????????????????????BB????BB????????????# | | ?????????????????????????????????????????# | | ?????????????????????????????????????????# | | ?????????????????????????????????###############+# | | ?????????????????????????????????# # | | ???????????????????#""""""""""#??# + "" | | ???????????????????# #??# # "T | | ???????????????????# #??# # | | ???????????????????# #??# ## # | | ???????????????????# "" #### """ """ ## # | | ???????????????????# "@ ;]]"""S""" ## # | | ???????????????????# #;############# # | | ???????????????????# ## #???????????# # | | ???????????????????# #?##????????????# # | | ???????????????????# #???????????????# # | | ??????????????????# #??????????????? # | | ??????????????????##"" ##???????????????? # | | ???????????????????#"" #????????????????? # | | ???????????????????#"" #????????????????? # | | ???????????????????#T w#????????????????? ? | | ???????????????????#"" #??????????????????? | | ???????????????????#"" #??????????????????? | | ????????????????????"" #??????????????????? | | ???????????????????? ??????????????????? | | ???????????????????? ??????????????????? | | ????????????????????###########??????????????????? | | ?????????????????????????????????????????????????? | | ?????????????????????????????????????????????????? | | ?????????????????????????????????????????????????? | | ?????????????????????????????????????????????????? | | ?????????????????????????????????????????????????? | | ?????????????????????????????????????????????????? | | ?????????????????????????????????????????????????? | | ?????????????????????????????????????????????????? | | ?????????????????????????????????????????????????? | +----------------------------------------------------+ Best States ------------- Heat Dissipation 110 Energy Generation 45 Energy Capacity 600 Matter Stores 309 Matter Capacity 400 Sight Range 16 Terrain Scan Range 18 Terrain Scan Density 10 Jamming Range 22 Base Temperature (-) 200 Armor Coverage 1650 Resistance: KI 20 Resistance: EM 25 Power Shielding 66 Propulsion Shielding 15 Utility Shielding 66 Weapon Shielding 90 Weapon Cycling 15 Evasion (%) 42 Targeting Accuracy 5 Recoil Reduction 9 Particle Charging 30 Offensive Hacking 34 Item Schematics ----------------- Combat Drone Bay | -7/Data Miner | Free Lgt. Regenerative Plating | -7/Data Miner | Free Cld. Cesium-ion Thruster | -7/Data Miner | Free Imp. Heavy Machine Gun | -7/Data Miner | Free Gravity Neutralizer | -7/Data Miner | Free Field Propulsion Drive | -7/Data Miner | Free Imp. Shock Absorption System | -7/Data Miner | Free Imp. Arc Projector | -7/Data Miner | Free Gyrokinetic Inverter | -7/Data Miner | Free Hyp. Mass Driver | -7/Data Miner | Free Assault Drone Bay | -4/Zhirov | Free Exp. Heat Sink | -4/Zhirov | Free Imp. Arc Thrower | -4/Zhirov | Free Exp. Optical Array | -4/Zhirov | Free Robot Schematics ------------------ P-60 Hacker | -7/Data Miner | Free D-53 Grenadier | -7/Data Miner | Free A-15 Conveyor | -7/Data Miner | Free B-48 Gladiator | -7/Data Miner | Free S-27 Virus | -7/Data Miner | Free Fabricated ------------ Quantum Reactor | x2 | -5/Factory | Preloaded C-35 Carver | x3 | -5/Factory | Preloaded Alien Tech Used ----------------- Integrated Dissipator Achievements -------------- Epsilon Run Main Advantage Revolutionary Research Tester The Science Guy Challenges ------------ None Game ------ Seed TimingWarpMatrix Manual? 0 Play Time 04:04:45 Cumulative 91.9 hours Start 2024.08.16 @ 11:39:44 End 2024.08.19 @ 17:54:46 Sessions 7 Manual Loads 0 Difficulty Rogue Special Mode None Game No. 57 Rogue 57 Adventurer 0 Explorer 0 Win Type 0 Total 1 Types 1/0/0/0/0/0/0/0/0 Lore% 37 Gallery% 51 Achievement% 47 Wizard Run 0 Options --------- Layout 1 ASCII 0 Keyboard 0 Movement Numpad Keybinds 0 Fullscreen 2 Font 24/Smallcaps Map View 50x35 Zoom Use 0% Tactical HUD 1 Map Filters NONE Filters NONE Steam 1 RUN: ed7167c3-3847-4588-be7a-c12c16c014a9